bitfinex/quotes_ETHUSD_20260108
["timestamp","ask_amount","ask_price","bid_price","bid_amount"]
[1767835228760,0.9,3172.9,3172.2,3.78]
[1767835228949,0.75015196,3172.8,3172.2,3.78]
[1767835229677,0.75015196,3172.8,3172.2,3.15237678]
[1767835229874,0.75015196,3172.8,3172.1,3.15245747]
[1767835230270,0.75015196,3172.8,3172.0,4.10139402]
[1767835230468,0.75015196,3172.8,3172.0,4.10136577]
[1767835230662,0.75015196,3172.7,3172.0,4.10136577]
[1767835230849,0.75015196,3172.7,3171.9,3.15264654]
[1767835230850,0.75015196,3172.7,3171.9,3.15268357]
[1767835231054,0.75015196,3172.6,3171.5,0.94885843]
[1767835231254,0.75015196,3172.6,3171.6,4.10177315]
[1767835231590,0.75015196,3172.4,3171.6,0.94885843]
[1767835231759,0.75015196,3172.4,3171.3,3.15326496]
[1767835232083,0.75015196,3172.2,3171.3,3.15326496]
[1767835232269,0.75015196,3172.2,3171.4,3.15317431]
[1767835232781,0.75015196,3172.2,3171.3,4.05806445]
[1767835232782,0.75015196,3172.1,3171.3,4.05806445]
[1767835233657,0.75015196,3172.1,3171.2,3.1543265]
[1767835233978,0.75015196,3172.1,3171.2,3.15436471]
[1767835234277,0.827,3172.0,3171.3,3.15326245]
[1767835234481,0.75015196,3171.9,3171.3,3.15326245]
[1767835236659,0.75015196,3171.9,3171.2,4.05918606]
[1767835236958,0.75015196,3171.9,3171.2,4.78046039]
[1767835237685,0.75015196,3171.8,3171.2,0.001]
[1767835239994,0.75015196,3171.7,3171.2,0.001]
[1767835240197,1.57715196,3171.6,3171.2,0.001]
[1767835240566,0.75015196,3171.5,3171.2,0.001]
[1767835240765,0.827,3171.6,3171.2,0.001]
[1767835241194,0.827,3171.6,3171.2,0.90582575]
[1767835244908,3.90296811,3171.8,3171.2,0.90582575]
[1767835245216,0.827,3171.7,3171.5,0.001]
[1767835245368,0.827,3171.7,3171.2,0.90582575]
[1767835255703,0.75015196,3171.6,3170.4,0.90482575]
[1767835255998,0.75015196,3171.5,3170.6,4.05879506]
[1767835256200,0.75015196,3171.5,3170.7,3.15385666]
[1767835256500,0.75015196,3171.4,3170.6,4.05876279]
[1767835258779,3.90336793,3171.4,3170.6,4.05876279]
[1767835259191,0.75015196,3171.4,3170.6,4.05876279]
[1767835259591,0.75015196,3171.3,3170.6,4.05876279]
[1767835259892,0.827,3171.2,3170.6,4.05876279]
[1767835260091,0.827,3171.2,3170.7,0.90482575]
[1767835261434,1.57715196,3171.2,3170.5,0.90482575]
[1767835261588,0.75015196,3171.1,3170.4,3.15411781]
[1767835261787,0.75015196,3171.1,3170.4,4.05894356]
[1767835262086,0.75015196,3171.1,3170.4,4.78036612]
[1767835262504,0.75015196,3171.1,3170.4,1.62624831]
[1767835262681,0.75015196,3171.1,3170.6,3.15396286]
[1767835262886,0.75015196,3171.1,3170.5,4.07829772]
[1767835264988,0.827,3171.2,3170.5,4.07829772]
[1767835265190,0.827,3171.2,3170.6,0.92426642]
[1767835265505,1.57715196,3171.2,3170.6,0.92426642]
[1767835266142,4.73053389,3171.2,3170.6,0.92426642]
[1767835266301,0.75015196,3171.1,3170.4,4.07839395]
[1767835267422,0.75015196,3171.1,3170.4,0.92426642]
[1767835267926,0.75015196,3171.1,3170.4,4.0784163]
[1767835268389,0.75015196,3171.1,3170.9,0.001]
[1767835268589,0.75015196,3171.1,3170.5,0.92426642]
[1767835269013,0.75015196,3171.1,3170.5,1.64763408]
[1767835269316,0.75015196,3171.5,3170.6,0.92426642]
[1767835269524,0.827,3171.5,3170.8,0.92426642]
[1767835269825,0.827,3171.5,3171.0,0.92426642]
[1767835280313,0.002,3171.2,3171.0,0.92426642]
[1767835283935,0.002,3171.2,3171.1,0.92426642]
[1767835284237,3.15215493,3172.5,3171.4,0.92426642]
[1767835284440,0.827,3172.2,3171.4,0.92426642]
[1767835284626,3.90218283,3172.6,3171.4,0.92426642]
[1767835284937,1.94455208,3172.6,3171.4,0.92426642]
[1767835285129,0.827,3172.5,3171.4,0.92426642]
[1767835285527,0.9,3172.2,3171.4,0.92426642]
[1767835286233,0.9,3172.2,3171.6,0.92426642]
[1767835286440,0.827,3172.5,3171.6,0.9143759]
[1767835286840,0.002,3172.8,3171.6,0.9143759]
[1767835287045,0.827,3172.7,3171.8,0.92426642]
[1767835287213,1.58704248,3172.7,3171.8,0.92426642]
[1767835288277,3.15208825,3172.5,3171.8,0.92426642]
[1767835288439,3.91213073,3172.5,3171.8,0.92426642]
[1767835289939,0.76004248,3172.5,3171.8,0.92426642]
[1767835290144,0.76004248,3172.5,3171.9,0.92426642]
[1767835290526,0.9,3172.4,3171.9,0.92426642]
[1767835290724,0.76004248,3172.5,3171.9,0.92426642]
[1767835291249,3.91213487,3172.5,3171.9,0.92426642]
[1767835292357,3.91213487,3172.5,3171.7,3.87493387]
[1767835292358,5.64789793,3172.4,3171.7,1.70049641]
[1767835292557,5.64789793,3172.4,3171.7,0.97844239]
[1767835292558,0.002,3172.2,3171.7,0.97844239]
[1767835293646,0.002,3172.2,3171.7,1.39158468]
[1767835295617,0.002,3172.2,3171.7,0.97844239]
[1767835296120,0.829,3172.2,3171.7,0.97844239]
[1767835298850,0.829,3172.2,3171.5,4.13148373]
[1767835299051,0.829,3172.2,3171.6,0.97844239]
[1767835299650,3.98139369,3172.2,3171.6,0.97844239]
[1767835301520,4.74143617,3172.2,3171.6,0.97844239]
[1767835302252,6.01958439,3172.2,3171.6,0.97844239]
[1767835302748,0.76004248,3172.1,3171.4,0.97844239]
[1767835304454,3.91255538,3172.1,3171.4,0.97844239]
[1767835304752,0.002,3171.9,3171.4,0.97844239]
[1767835306519,0.002,3171.9,3171.1,0.97844239]
[1767835306520,5.64789793,3171.8,3171.1,0.97844239]
[1767835306721,5.64789793,3171.5,3170.9,0.97944239]
[1767835307169,0.76004248,3171.4,3170.9,0.001]
[1767835310233,0.76004248,3171.4,3170.9,3.15467876]
[1767835310553,0.002,3171.9,3171.0,0.97844239]
[1767835310732,0.88223838,3171.9,3171.0,0.97844239]
[1767835310940,0.827,3171.8,3171.0,0.97844239]
[1767835313066,0.827,3171.8,3171.1,0.97844239]
[1767835313772,3.97979347,3171.8,3171.1,0.97844239]
[1767835314467,4.73983595,3171.8,3171.1,0.97844239]
[1767835314671,5.6173036,3171.8,3171.1,0.97844239]
[1767835315573,0.9,3171.6,3171.1,0.97844239]
[1767835315738,10.50515905,3171.8,3171.1,0.97844239]
[1767835316072,7.35236558,3171.8,3171.3,0.001]
[1767835316267,0.002,3171.6,3171.3,0.001]
[1767835318871,0.829,3171.6,3171.3,0.97944239]
[1767835320068,0.829,3171.6,3171.0,3.1535374]
[1767835320271,0.829,3171.6,3171.1,0.97844239]
[1767835320475,1.48843231,3171.6,3171.1,0.97844239]
[1767835321645,0.94835189,3171.5,3170.9,0.001]
[1767835322548,0.94835189,3171.5,3170.9,0.90654556]
[1767835323578,0.94835189,3171.5,3170.9,0.001]
[1767835323877,0.90539936,3171.4,3170.9,0.001]
[1767835325556,0.90539936,3171.4,3170.7,4.05937601]
[1767835327876,0.90539936,3171.4,3171.0,0.001]
[1767835328081,0.90539936,3171.4,3170.7,4.05937601]
[1767835330483,0.90539936,3171.3,3170.6,3.15396291]
[1767835331587,0.90539936,3171.3,3170.6,0.90554556]
[1767835333762,0.90539936,3171.3,3170.7,3.15387769]
[1767835333962,0.90539936,3171.3,3170.7,4.61058495]
[1767835337500,0.90539936,3171.5,3170.8,0.90554556]
[1767835338288,0.90539936,3171.5,3170.8,0.93708334]
[1767835338777,0.90539936,3171.5,3170.8,0.90554556]
[1767835339594,0.90539936,3171.5,3171.0,0.001]
[1767835339899,0.002,3171.1,3171.0,0.001]
[1767835341290,0.002,3171.1,3171.0,1.31573084]
[1767835341486,0.002,3171.4,3171.1,0.90554556]
[1767835341671,0.002,3171.6,3171.3,0.90554556]
[1767835342070,0.002,3171.9,3171.6,0.90554556]
[1767835344001,0.002,3171.9,3171.7,0.90554556]
[1767835344300,0.002,3173.2,3172.6,0.90554556]
[1767835345996,0.002,3173.2,3172.8,0.90554556]
[1767835347990,0.002,3173.2,3172.9,3.15169088]
[1767835348194,0.002,3173.2,3173.0,0.90554556]
[1767835348506,0.002,3173.2,3173.1,0.40572364]
[1767835348675,0.002,3173.2,3173.0,0.90554556]
[1767835349076,0.002,3173.2,3172.8,4.05729672]
[1767835350208,0.002,3173.2,3172.8,7.20908693]
[1767835351206,0.002,3173.2,3172.8,4.05729672]
[1767835353077,0.002,3172.9,3172.8,4.05729672]
[1767835353403,0.002,3172.9,3172.8,4.77822331]
[1767835355190,0.002,3172.9,3172.8,1.62647215]
[1767835356383,0.002,3172.9,3172.8,4.77826236]
[1767835356686,0.002,3173.2,3172.8,7.02450701]
[1767835356915,0.002,3173.2,3173.0,0.91093906]
[1767835357099,0.002,3173.2,3172.9,0.7966965]
[1767835357420,0.002,3173.4,3173.0,3.15159155]
[1767835357607,0.94661776,3173.4,3173.0,3.15159155]
[1767835358419,0.002,3173.4,3173.0,4.06253061]
[1767835358596,0.002,3173.4,3173.2,0.91093906]
[1767835359530,0.002,3173.4,3173.3,0.91093906]
[1767835367213,0.002,3173.4,3173.1,1.71302346]
[1767835367643,0.002,3173.4,3173.2,0.91093906]
[1767835368945,0.002,3173.4,3173.2,4.06232704]
[1767835369329,0.002,3173.4,3173.2,0.91093906]
[1767835369915,0.002,3173.4,3173.1,0.001]
[1767835372448,0.002,3173.4,3173.1,0.91193906]
[1767835376939,0.002,3173.4,3173.1,4.06342625]
[1767835377857,0.002,3173.4,3173.2,0.91093906]
[1767835378059,0.829,3173.8,3173.3,0.94245199]
[1767835378060,0.002,3173.8,3173.3,0.94245199]
[1767835379062,0.00191229,3174.0,3173.6,0.91093906]
[1767835383888,0.00191229,3174.0,3173.6,4.06192079]
[1767835384654,0.00191229,3174.0,3173.6,0.91093906]
[1767835384986,0.00191229,3174.0,3173.6,4.06188159]
[1767835385286,0.00191229,3174.0,3173.6,4.06189158]
[1767835385585,0.00191229,3174.0,3173.7,0.92145974]
[1767835386364,0.002,3174.3,3173.8,0.92145974]
[1767835388487,0.002,3174.3,3174.0,0.92145974]
[1767835390488,0.002,3174.3,3174.2,0.92145974]
[1767835390696,1e-08,3174.4,3174.2,0.92145974]
[1767835390908,1e-08,3174.4,3174.3,1.64370558]
[1767835391864,1e-08,3174.4,3174.3,0.72224584]
[1767835392360,1e-08,3174.4,3174.3,1.64370558]
[1767835393492,1e-08,3174.4,3174.3,0.72224584]
[1767835395138,1e-08,3174.4,3174.3,4.79400643]
[1767835395336,1e-08,3174.4,3174.3,1.64370558]
[1767835397021,1e-08,3174.4,3174.3,4.79400643]
[1767835397337,0.002,3174.9,3174.5,0.92145974]
[1767835399223,0.002,3174.9,3174.7,0.92145974]
[1767835400738,0.002,3175.3,3174.8,0.92145974]
[1767835401204,0.002,3175.3,3175.0,0.92145974]
[1767835401401,0.002,3175.3,3175.1,0.40711652]
[1767835401822,0.002,3175.3,3175.1,1.32857626]
[1767835402027,0.002,3175.3,3175.2,0.92145974]
[1767835402834,1.72860347,3175.8,3175.2,0.92145974]
[1767835402835,0.90260347,3175.8,3175.2,0.92145974]
[1767835403038,0.002,3176.2,3175.2,0.92145974]
[1767835403039,0.90260347,3176.1,3175.2,0.92145974]
[1767835403540,0.90260347,3176.1,3175.3,4.07076846]
[1767835403734,0.90260347,3176.1,3175.3,4.83349621]
[1767835403904,0.90260347,3176.1,3175.4,0.92145974]
[1767835404107,0.002,3176.2,3175.6,0.92145974]
[1767835404448,0.90260347,3176.9,3176.0,0.92145974]
[1767835405732,0.90260347,3176.8,3175.9,3.14865239]
[1767835406037,0.90260347,3176.7,3175.7,3.97485106]
[1767835406337,0.90260347,3176.7,3175.7,3.97491161]
[1767835406642,0.90260347,3176.7,3175.8,3.14877959]
[1767835407271,1.20763169,3176.8,3175.3,0.76272775]
[1767835407272,0.90260347,3176.5,3175.4,4.07064938]
[1767835407410,0.90260347,3176.2,3175.5,0.92145974]
[1767835407609,0.90260347,3176.1,3175.3,4.07075645]
[1767835408334,0.90260347,3176.1,3175.4,0.92145974]
[1767835408712,0.90260347,3176.1,3175.3,0.92145974]
[1767835409315,0.90260347,3176.1,3175.2,3.1493664]
[1767835409535,0.90260347,3176.0,3175.3,3.14930696]
[1767835409839,0.90260347,3176.0,3175.2,0.92145974]
[1767835410556,0.07446393,3477.1,3175.2,0.92145974]
[1767835410557,4.3554739,3176.8,3175.6,0.92145974]
[1767835410714,0.90260347,3176.7,3175.6,0.95294985]
[1767835410913,0.90260347,3176.7,3175.8,0.92145974]
[1767835411937,3.14801989,3176.6,3175.8,0.92145974]
[1767835412142,0.9113525,3176.5,3175.8,0.92145974]
[1767835414222,0.9113525,3176.5,3175.9,0.92565152]
[1767835415320,0.002,3176.2,3175.9,0.92565152]
[1767835415531,0.9133525,3176.2,3175.7,0.66572154]
[1767835417352,0.002,3176.2,3175.7,0.66572154]
[1767835417858,0.9133525,3176.2,3175.6,0.92565152]
[1767835418052,0.9133525,3176.2,3175.4,1.75165152]
[1767835418251,0.9113525,3176.0,3175.3,3.14925903]
[1767835418556,0.9113525,3176.0,3175.3,0.92565152]
[1767835418755,0.9113525,3176.0,3175.2,3.14938166]
[1767835419049,0.9113525,3176.0,3175.3,4.48568801]
[1767835419561,0.9113525,3176.0,3175.3,1.33640435]
[1767835419966,0.9113525,3176.0,3175.3,4.48569047]
[1767835420465,0.9113525,3176.0,3175.3,1.33640435]
[1767835420841,0.9113525,3176.0,3175.4,0.92565152]
[1767835421362,0.9133525,3176.2,3175.4,0.92565152]
[1767835421566,0.9133525,3176.2,3175.4,4.07484424]
[1767835421736,0.9133525,3176.2,3175.5,0.92565152]
[1767835422366,0.9133525,3176.2,3175.3,1.33640435]
[1767835422556,0.9113525,3176.1,3175.3,1.33640435]
[1767835422858,0.9113525,3176.1,3175.4,4.07483221]
[1767835423067,0.9113525,3176.1,3175.5,0.92565152]
[1767835423479,0.9113525,3176.1,3175.6,3.14901121]
[1767835423637,0.002,3176.2,3175.7,0.92565152]
[1767835423968,0.002,3176.2,3175.8,0.95713964]
[1767835425141,0.002,3176.2,3175.8,0.92565152]
[1767835425643,0.9133525,3176.2,3175.3,5.31168249]
[1767835425859,0.9133525,3176.2,3175.4,0.92565152]
[1767835426566,0.9133525,3176.2,3175.3,1.36789743]
[1767835426865,0.9133525,3176.2,3175.4,3.60091451]
[1767835428065,4.06178606,3176.2,3176.0,0.001]
[1767835428257,0.9113525,3176.1,3175.4,3.60091451]
[1767835429666,0.9113525,3176.1,3175.4,0.4517281]
[1767835430073,0.9113525,3176.0,3175.2,4.07502602]
[1767835431636,0.9113525,3176.0,3175.2,3.14938904]
[1767835432041,0.9113525,3176.0,3175.1,0.001]
[1767835432242,0.9113525,3175.7,3175.1,0.001]
[1767835433369,0.9113525,3175.7,3175.1,0.72360564]
[1767835434575,0.9113525,3175.7,3175.1,0.001]
[1767835435374,0.9113525,3175.6,3175.1,0.001]
[1767835437270,0.9113525,3175.5,3175.1,0.001]
[1767835437474,0.9113525,3175.5,3174.7,3.78]
[1767835437776,0.9113525,3175.3,3174.4,0.826]
[1767835438070,0.9113525,3175.3,3174.3,0.92565152]
[1767835438071,0.9113525,3175.3,3174.3,1.75165152]
[1767835438281,0.9113525,3175.3,3174.3,0.92565152]
[1767835438477,0.9113525,3175.3,3174.4,3.15014825]
[1767835438650,0.9113525,3175.2,3174.4,3.15014825]
[1767835439678,1.80525474,3175.2,3174.4,3.15014825]
[1767835439876,0.9113525,3175.0,3174.1,1.75165152]
[1767835440071,0.9113525,3175.0,3174.2,3.15034934]
[1767835440382,0.9113525,3174.7,3174.0,3.781]
[1767835440757,0.9113525,3174.7,3174.0,0.001]
[1767835441274,0.9113525,3174.6,3174.0,0.001]
[1767835441454,0.9113525,3174.4,3174.0,0.001]
[1767835442284,0.9113525,3174.4,3174.0,3.15157423]
[1767835442454,0.9386361,3174.8,3174.0,3.15157423]
[1767835442752,0.9386361,3174.8,3174.1,0.03150499]
[1767835443181,4.08844551,3174.8,3174.1,0.03150499]
[1767835443387,0.9386361,3174.7,3174.0,3.15157423]
[1767835448490,0.9386361,3174.7,3174.0,4.13369855]
[1767835450369,0.9386361,3174.9,3174.1,0.98212432]
[1767835451286,0.9066361,3174.9,3174.1,0.98212432]
[1767835451986,0.9066361,3174.9,3174.3,0.98312432]
[1767835452190,0.9066361,3174.9,3174.3,0.001]
[1767835452675,0.9386361,3174.8,3174.3,0.001]
[1767835453494,4.0882918,3175.0,3174.3,0.98312432]
[1767835455589,0.9386361,3174.9,3174.3,0.001]
[1767835456586,0.9386361,3174.9,3174.3,3.15129869]
[1767835457172,0.9386361,3174.9,3174.3,0.001]
[1767835458608,0.9386361,3175.5,3174.4,0.98212432]
[1767835458791,0.9386361,3175.5,3174.3,0.41436237]
[1767835459873,0.9386361,3175.3,3174.3,0.41436237]
[1767835460374,0.9386361,3175.3,3174.3,3.56464256]
[1767835460591,0.9386361,3175.2,3174.3,3.56464256]
[1767835461900,0.9386361,3175.1,3174.3,3.56464256]
[1767835462270,0.9386361,3175.1,3174.3,4.54676688]
[1767835462581,0.9386361,3175.1,3174.4,1.01362633]
[1767835462780,0.9386361,3175.1,3174.3,3.56464256]
[1767835462986,0.9386361,3175.1,3174.4,0.76971551]
[1767835463188,0.9386361,3175.1,3174.3,3.56464256]
[1767835463189,0.9386361,3175.1,3174.3,0.41436237]
[1767835463397,0.9386361,3175.1,3174.3,0.001]
[1767835464208,0.9386361,3174.9,3174.3,0.001]
[1767835466606,0.9386361,3174.8,3174.3,0.001]
[1767835469199,0.9386361,3174.7,3174.0,0.001]
[1767835469387,0.9386361,3174.7,3174.0,0.98312432]
[1767835470100,0.9386361,3174.7,3174.0,0.001]
[1767835470276,0.9386361,3174.5,3173.4,4.76212432]
[1767835470605,0.9386361,3174.5,3173.5,3.15104588]
[1767835470996,0.9386361,3174.3,3173.5,3.151095]
[1767835471706,3.15020161,3174.4,3173.1,0.001]
[1767835471707,0.9386361,3174.1,3173.1,3.15243376]
[1767835471905,0.9386361,3174.1,3173.1,0.001]
[1767835472371,0.9386361,3174.1,3173.1,3.15247937]
[1767835472574,0.9386361,3174.1,3173.3,3.15129253]
[1767835473201,0.9386361,3174.1,3173.2,3.15139291]
[1767835473378,0.99694138,3174.0,3173.2,3.15139291]
[1767835473775,0.99694138,3174.0,3173.2,4.10363169]
[1767835474823,0.99694138,3174.0,3173.4,0.001]
[1767835475305,0.99694138,3174.2,3173.4,0.95323878]
[1767835476277,3.15002977,3174.6,3173.6,0.95223878]
[1767835476278,0.99694138,3174.6,3173.6,0.95223878]
[1767835476481,0.002,3174.9,3173.8,0.95223878]
[1767835476482,0.99694138,3174.8,3173.8,0.95223878]
[1767835476784,0.99694138,3174.8,3173.6,0.826]
[1767835476785,0.002,3174.9,3174.0,0.95223878]
[1767835477098,0.002,3174.9,3174.3,0.95223878]
[1767835477683,0.002,3174.9,3174.3,1.67754268]
[1767835477894,0.002,3174.9,3174.4,0.95223878]
[1767835479193,0.002,3174.9,3174.5,0.95223878]
[1767835480304,0.002,3174.9,3174.3,3.87556399]
[1767835480492,0.99894138,3174.9,3174.3,0.7253039]
[1767835482394,0.99894138,3174.9,3174.3,3.87560108]
[1767835483013,0.99894138,3174.9,3174.4,0.48278399]
[1767835484519,0.002,3174.9,3174.4,0.48278399]
[1767835484723,8.02648524,3175.6,3174.4,0.48278399]
[1767835484725,0.002,3176.5,3175.8,0.95223878]
[1767835484885,0.99694138,3177.2,3175.9,1.09200698]
[1767835485090,0.002,3177.8,3176.0,0.5969454]
[1767835485393,0.002,3177.8,3176.2,0.95223878]
[1767835486017,0.99694138,3177.7,3176.3,3.14831722]
[1767835486191,0.99694138,3177.7,3176.2,4.10062482]
[1767835486514,0.99694138,3177.7,3176.2,4.92662482]
[1767835486693,0.99694138,3177.7,3176.3,0.8075129]
[1767835487593,0.99694138,3177.7,3176.4,0.95223878]
[1767835487991,4.14390443,3177.7,3176.4,0.95223878]
[1767835488209,0.99694138,3177.6,3176.4,0.95223878]
[1767835490526,0.99694138,3177.6,3176.5,0.95223878]
[1767835490816,0.99694138,3177.6,3176.7,0.95223878]
[1767835491022,0.002,3177.8,3176.7,0.95223878]
[1767835492219,0.002,3177.8,3176.9,0.95223878]
[1767835494329,0.002,3177.8,3177.1,0.95223878]
[1767835494824,0.99894138,3177.8,3176.7,0.95223878]
[1767835495038,0.99894138,3177.8,3176.5,0.95223878]
[1767835495039,0.99694138,3177.7,3176.5,0.95223878]
[1767835495535,0.828,3177.8,3176.6,3.14801793]
[1767835495835,0.828,3177.8,3176.9,0.95223878]
[1767835496038,0.99694138,3177.7,3176.9,0.95223878]
[1767835496444,0.99694138,3177.7,3176.7,1.36226445]
[1767835496650,0.99694138,3177.7,3176.7,0.95223878]
[1767835497843,0.99694138,3177.7,3176.5,4.10032484]
[1767835498029,0.99694138,3177.7,3176.6,3.14800955]
[1767835498669,0.99694138,3177.7,3176.6,4.10024833]
[1767835498940,0.99694138,3177.7,3176.7,0.95223878]
[1767835499121,0.99694138,3177.7,3176.8,0.41002483]
[1767835499844,0.002,3177.5,3176.8,0.41002483]
[1767835500734,0.98271577,3177.6,3176.8,0.41002483]
[1767835500929,0.98271577,3177.6,3176.2,0.95223878]
[1767835501229,0.99694138,3177.5,3176.2,0.95223878]
[1767835501740,0.99694138,3177.5,3176.0,3.18008619]
[1767835501943,0.99694138,3177.5,3175.9,4.92691656]
[1767835502440,0.99694138,3177.5,3176.1,0.99623921]
[1767835502662,0.99694138,3177.5,3175.9,0.826]
[1767835502663,0.002,3177.8,3176.5,0.99623921]
[1767835502966,0.002,3177.8,3176.9,0.99623921]
[1767835503112,0.002,3177.8,3177.1,0.99623921]
[1767835503312,0.002,3177.8,3177.3,0.99623921]
[1767835503742,0.002,3177.8,3177.0,0.826]
[1767835503965,0.002,3177.8,3177.1,0.18466163]
[1767835504114,0.96279502,3177.8,3176.7,3.17227578]
[1767835504451,0.96279502,3177.8,3176.8,0.99623921]
[1767835505142,0.96279502,3177.8,3176.9,0.01907794]
[1767835505347,0.96279502,3177.8,3176.8,0.99623921]
[1767835506441,0.96279502,3177.8,3176.5,3.14810254]
[1767835506442,0.96079502,3177.7,3176.5,0.99623921]
[1767835506643,0.96079502,3177.6,3176.5,0.99623921]
[1767835506945,0.96079502,3177.6,3176.3,3.14829926]
[1767835507249,0.96079502,3177.5,3176.2,1.85372237]
[1767835507413,0.96079502,3177.5,3176.2,1.82223921]
[1767835507613,0.96079502,3177.3,3176.2,0.826]
[1767835507857,1.13947452,3177.3,3176.2,1.82223921]
[1767835508220,1.13947452,3177.3,3176.3,0.99623921]
[1767835508622,1.13947452,3177.3,3176.4,1.02772139]
[1767835508623,0.1786795,3177.3,3176.4,1.02772139]
[1767835508834,0.826,3177.4,3176.5,0.99623921]
[1767835509124,0.96079502,3177.6,3176.6,0.03148019]
[1767835509348,0.96079502,3177.5,3176.5,0.99623921]
[1767835509847,0.96079502,3177.5,3176.3,0.99623921]
[1767835510050,0.96079502,3177.5,3176.1,0.99623921]
[1767835510245,0.96079502,3177.3,3176.1,0.99623921]
[1767835510821,0.96079502,3177.2,3176.1,0.99623921]
[1767835511222,0.96079502,3177.2,3176.2,0.99623921]
[1767835511439,0.96079502,3177.2,3176.0,0.99623921]
[1767835511644,0.96079502,3177.2,3176.5,0.001]
[1767835511842,0.96079502,3177.0,3176.5,0.001]
[1767835512041,0.96079502,3176.8,3176.5,0.001]
[1767835512642,0.826,3176.9,3176.5,0.001]
[1767835512842,0.002,3177.5,3176.5,0.99723921]
[1767835513046,0.002,3177.5,3176.6,1.0277194]
[1767835513361,0.002,3177.5,3176.9,0.01933693]
[1767835513855,0.96279502,3177.5,3176.9,0.01933693]
[1767835514218,0.96079502,3177.4,3176.9,0.01933693]
[1767835514437,0.4129735,3177.5,3176.9,0.01933693]
[1767835514634,0.002,3177.5,3176.9,0.01933693]
[1767835514853,0.002,3177.5,3177.0,0.99623921]
[1767835515056,0.002,3177.5,3176.9,0.01933693]
[1767835515568,0.96279502,3177.5,3176.9,0.01933693]
[1767835516444,0.002,3177.5,3176.9,0.01933693]
[1767835517444,0.002,3177.5,3176.9,0.0413137]
[1767835517958,0.002,3177.5,3176.9,0.01933693]
[1767835518325,0.002,3177.5,3177.0,0.03147623]
[1767835518522,0.002,3177.5,3176.9,1.01557614]
[1767835519469,0.002,3177.5,3177.0,0.03146829]
[1767835519637,0.002,3177.5,3177.1,0.99623921]
[1767835520644,0.002,3177.5,3176.9,0.01933693]
[1767835521762,0.002,3177.5,3176.9,1.01557614]
[1767835524176,0.002,3177.5,3177.1,0.99623921]
[1767835525934,0.002,3177.5,3176.9,0.01933693]
[1767835526134,0.002,3177.5,3176.9,1.01557614]
[1767835526541,0.002,3177.5,3177.0,0.99623921]
[1767835527265,0.002,3177.5,3176.9,0.01933693]
[1767835528041,0.002,3177.5,3176.9,1.01557614]
[1767835529791,0.96079502,3177.4,3176.9,0.01933693]
[1767835530075,0.96079502,3177.4,3176.5,0.001]
[1767835530251,0.96079502,3177.3,3176.0,0.99623921]
[1767835530464,0.96079502,3177.1,3176.0,0.99623921]
[1767835531374,0.826,3177.0,3176.0,0.99623921]
[1767835531964,0.826,3177.0,3176.1,0.90030876]
[1767835532342,3.14752774,3177.1,3176.1,0.90030876]
[1767835532562,0.826,3177.0,3176.1,0.90030876]
[1767835532895,1.40024743,3177.0,3176.1,0.90030876]
[1767835533663,0.8081264,3177.2,3176.3,0.90030876]
[1767835533862,0.002,3177.5,3176.7,0.90030876]
[1767835534090,0.002,3177.5,3176.6,3.14801989]
[1767835534091,0.002,3177.5,3176.9,0.90030876]
[1767835534289,0.002,3177.5,3177.0,0.93178499]
[1767835534492,0.002,3177.5,3177.0,0.90030876]
[1767835534994,0.002,3177.8,3177.5,0.90030876]
[1767835535293,0.826,3178.6,3177.7,0.90030876]
[1767835535596,0.826,3178.6,3177.2,0.90030876]
[1767835535597,0.90980022,3178.5,3177.2,0.90030876]
[1767835535784,1.08338024,3178.4,3177.2,0.90030876]
[1767835535984,1.08338024,3178.4,3176.9,0.826]
[1767835535985,1.08338024,3178.4,3176.9,0.90030876]
[1767835535986,0.90980022,3178.2,3176.9,0.90030876]
[1767835537494,0.90980022,3178.2,3176.5,0.90030876]
[1767835537682,0.90980022,3178.2,3176.4,0.001]
[1767835538089,0.90980022,3178.0,3176.4,0.001]
[1767835538294,0.90980022,3177.8,3176.4,0.93279094]
[1767835538982,0.90980022,3177.8,3176.4,0.90130876]
[1767835540579,3.14693016,3177.7,3176.4,0.90130876]
[1767835540779,6.29386032,3177.7,3176.4,0.90130876]
[1767835541790,4.05673038,3177.7,3176.4,0.90130876]
[1767835541985,0.72035837,3177.6,3176.5,0.90030876]
[1767835542193,1.54635837,3177.6,3176.7,0.90030876]
[1767835542374,0.826,3177.6,3176.9,0.90030876]
[1767835542578,0.826,3177.6,3177.0,0.92466722]
[1767835542966,4.05645878,3178.0,3177.0,0.90030876]
[1767835543189,0.826,3177.9,3177.0,0.90030876]
[1767835543390,0.48824588,3177.9,3177.0,0.90030876]
[1767835543590,0.90980022,3178.2,3177.0,0.90030876]
[1767835544080,0.90980022,3178.2,3176.4,3.24378415]
[1767835544081,0.90980022,3178.2,3176.7,0.90030876]
[1767835544481,0.90980022,3178.2,3176.8,0.90030876]
[1767835544688,0.90980022,3178.0,3176.8,0.90030876]
[1767835544886,1.31543365,3177.9,3176.8,1.30513103]
[1767835545286,1.31543365,3177.9,3176.9,0.90030876]
[1767835546795,4.46226344,3177.9,3176.9,0.90030876]
[1767835546995,4.46226344,3177.9,3177.2,0.001]
[1767835547196,0.90980022,3177.8,3177.2,0.001]
[1767835547493,3.55246322,3177.9,3177.2,0.001]
[1767835547494,1.35602656,3177.7,3177.2,0.001]
[1767835548806,0.90980022,3177.6,3177.2,0.001]
[1767835549008,0.90980022,3177.6,3176.4,0.001]
[1767835550372,0.90980022,3177.2,3176.4,0.001]
[1767835550692,0.9,3177.3,3176.4,0.90130876]
[1767835551015,0.826,3177.2,3176.4,0.90130876]
[1767835551894,0.39733453,3177.1,3176.4,0.90130876]
[1767835552775,3.54490667,3177.1,3176.4,0.90130876]
[1767835552970,6.29514428,3177.1,3176.4,0.001]
[1767835553186,7.2049445,3177.1,3176.4,0.001]
[1767835554885,4.05737236,3177.1,3176.4,0.001]
[1767835555087,7.2049445,3177.1,3176.4,0.001]
[1767835555287,0.80309445,3177.0,3176.4,0.001]
[1767835556181,0.826,3177.0,3176.4,0.90130876]
[1767835559482,0.826,3177.0,3176.7,0.001]
[1767835560522,3.97363291,3177.0,3176.7,0.001]
[1767835560995,4.88343313,3177.0,3176.7,0.001]
[1767835561191,0.90980022,3176.9,3176.4,0.001]
[1767835561405,1.7128991,3176.9,3176.4,0.001]